bitfinex/quotes_ETHUSD_20260202
["timestamp","ask_amount","ask_price","bid_price","bid_amount"]
[1770004844374,0.1035,2239.5,2237.8,0.001]
[1770004844375,0.95704702,2239.3,2237.8,0.001]
[1770004844568,0.1035,2239.5,2237.8,0.001]
[1770004844896,0.2335703,2239.2,2237.8,0.001]
[1770004845065,1.42334809,2239.0,2237.6,0.001]
[1770004845259,0.95797559,2238.9,2237.6,0.001]
[1770004845484,1.29217779,2238.8,2237.6,0.001]
[1770004845690,0.95797559,2238.7,2237.6,0.001]
[1770004845860,0.2335703,2238.5,2237.6,0.001]
[1770004846065,1.18977779,2238.4,2236.3,14.68815385]
[1770004846302,1.18977779,2238.3,2236.3,12.87515385]
[1770004846515,12.39144926,2238.1,2235.6,2.33825803]
[1770004846667,0.2335703,2236.7,2234.5,12.87515385]
[1770004846868,1.53237957,2236.7,2235.0,12.75390395]
[1770004847298,1.53237957,2236.7,2235.1,12.87658955]
[1770004847497,1.53237957,2236.7,2235.3,12.75390395]
[1770004847709,1.53237957,2236.7,2235.4,14.12299435]
[1770004848013,1.53237957,2236.7,2235.2,0.937]
[1770004848921,1.53237957,2236.7,2235.2,13.69090395]
[1770004849432,1.53237957,2236.7,2235.2,0.937]
[1770004850411,1.53237957,2236.7,2235.2,13.69090395]
[1770004851902,1.53237957,2236.7,2235.2,0.937]
[1770004852422,1.53237957,2236.7,2235.2,13.69090395]
[1770004852603,3.08754753,2236.7,2235.3,14.13526291]
[1770004852805,3.08754753,2236.7,2235.3,15.07326291]
[1770004853010,3.08754753,2236.7,2235.3,12.75390395]
[1770004853393,1.53237957,2236.7,2235.3,12.75390395]
[1770004854234,1.53237957,2236.7,2235.1,0.1226856]
[1770004855093,2.65011479,2236.7,2235.1,0.1226856]
[1770004855298,0.94213382,2236.6,2235.1,0.1226856]
[1770004855597,0.37339921,2236.5,2235.1,0.1226856]
[1770004856217,12.28706926,2236.3,2233.7,12.75390395]
[1770004856434,1.23894693,2236.2,2233.9,12.75390395]
[1770004856649,0.37339921,2236.5,2234.1,12.75390395]
[1770004856812,0.37339921,2236.5,2235.3,12.75490395]
[1770004857140,0.37449921,2236.5,2235.3,13.69290395]
[1770004857498,0.37449921,2236.5,2235.3,0.001]
[1770004857705,0.2335703,2236.4,2235.3,0.001]
[1770004858321,0.37449921,2236.5,2235.3,0.001]
[1770004860632,0.37449921,2236.5,2235.3,12.75490395]
[1770004860834,0.0011,2236.7,2235.4,14.02939434]
[1770004861019,0.4502564,2237.5,2235.6,12.75390395]
[1770004861199,0.4502564,2237.5,2235.7,0.938]
[1770004861399,0.4502564,2237.5,2235.8,12.75390395]
[1770004862101,0.4502564,2237.5,2236.0,12.75390395]
[1770004862330,0.4502564,2237.5,2236.0,13.80361824]
[1770004862836,4.708,2237.4,2235.8,12.75390395]
[1770004863037,4.708,2237.4,2235.7,0.938]
[1770004863225,0.2335703,2237.3,2235.7,0.938]
[1770004863746,1.11746826,2237.2,2235.3,0.001]
[1770004863951,12.42534218,2237.0,2235.3,0.001]
[1770004864254,4.708,2236.9,2235.3,12.75490395]
[1770004865037,12.65891248,2236.3,2234.3,12.75390395]
[1770004865235,12.65891248,2236.3,2233.9,1.05340457]
[1770004865236,0.2335703,2235.9,2233.9,1.05340457]
[1770004865548,14.93149178,2235.9,2233.4,0.938]
[1770004865755,12.76032248,2235.1,2232.6,12.75390395]
[1770004865917,0.2335703,2234.9,2232.6,12.75390395]
[1770004866119,12.76032248,2234.6,2232.7,1.3691904]
[1770004866420,12.76032248,2234.4,2232.2,0.001]
[1770004866638,0.1024,2233.5,2232.2,0.001]
[1770004866825,0.2335703,2233.4,2231.6,0.001]
[1770004867034,12.42435218,2233.8,2231.6,0.001]
[1770004867035,0.2335703,2233.6,2231.6,0.001]
[1770004867236,12.95108923,2233.8,2231.6,0.001]
[1770004867237,26.44365218,2233.8,2231.6,0.001]
[1770004867439,2.64436522,2233.7,2232.0,12.75490395]
[1770004867639,2.64436522,2233.7,2232.0,0.001]
[1770004868021,2.64436522,2233.7,2232.0,12.75265254]
[1770004868222,12.42336218,2233.8,2231.6,0.001]
[1770004868441,14.0193,2234.8,2231.6,12.75265254]
[1770004868639,0.1024,2234.7,2231.6,12.75265254]
[1770004868843,0.1024,2234.5,2231.6,12.75265254]
[1770004869048,12.42336218,2234.7,2231.8,12.75165254]
[1770004869241,0.1024,2234.6,2231.8,12.75165254]
[1770004869448,0.2335703,2234.5,2231.8,12.75165254]
[1770004869819,13.77578578,2234.5,2231.8,12.75165254]
[1770004870053,0.1024,2234.4,2231.8,12.75165254]
[1770004870259,0.2335703,2234.3,2232.4,0.001]
[1770004870461,0.1035,2234.2,2232.4,0.001]
[1770004870659,0.1024,2234.0,2232.4,0.001]
[1770004870862,0.2335703,2233.9,2232.4,0.001]
[1770004871073,12.65693248,2233.9,2232.4,0.001]
[1770004871385,0.2335703,2233.7,2232.4,0.001]
[1770004871663,0.1024,2233.6,2232.4,0.001]
[1770004871864,1.3529001,2233.5,2232.1,0.001]
[1770004872069,1.35292461,2233.5,2232.1,0.001]
[1770004872279,0.3359703,2233.5,2232.1,0.001]
[1770004872442,0.1024,2233.5,2232.1,0.001]
[1770004872775,0.2335703,2233.4,2231.6,0.001]
[1770004873444,0.2335703,2232.6,2231.4,0.09020693]
[1770004873643,0.2335703,2232.8,2230.1,0.939]
[1770004873856,0.1024,2233.3,2230.7,12.75165254]
[1770004874060,12.42336218,2233.0,2230.6,12.87433814]
[1770004874228,1.24233622,2232.9,2230.8,12.75165254]
[1770004874431,0.59321498,2233.5,2230.8,12.75165254]
[1770004874677,14.13590227,2233.5,2230.8,12.75165254]
[1770004874855,0.3359703,2233.4,2230.8,12.75165254]
[1770004875187,1.71253485,2233.5,2230.8,12.75165254]
[1770004875400,0.2335703,2233.2,2230.8,12.75165254]
[1770004875702,12.75933248,2233.1,2230.8,12.75165254]
[1770004875978,1.45549431,2233.1,2230.8,12.75165254]
[1770004876181,14.0193,2233.4,2230.8,12.75165254]
[1770004876547,14.0193,2233.4,2231.2,12.75165254]
[1770004876748,0.59321498,2233.5,2231.2,12.75165254]
[1770004876949,0.0011,2234.2,2231.4,12.75165254]
[1770004877379,1.12008015,2234.2,2231.4,12.75165254]
[1770004877792,12.52686218,2234.2,2231.4,12.75165254]
[1770004878161,12.52686218,2234.2,2231.4,13.69165254]
[1770004878499,0.0011,2234.2,2232.0,12.75165254]
[1770004878666,0.2335703,2234.1,2232.2,12.75165254]
[1770004878862,0.2335703,2233.9,2232.2,12.75165254]
[1770004879289,1.40325,2234.2,2232.2,12.75165254]
[1770004880270,1.40325,2234.2,2232.3,0.94]
[1770004880794,0.1024,2234.0,2232.2,12.75165254]
[1770004881003,0.1024,2233.6,2231.5,12.75165254]
[1770004881163,4.708,2233.9,2231.3,1.27516525]
[1770004881164,0.2335703,2233.9,2231.6,14.02681779]
[1770004881363,14.0193,2234.1,2231.8,12.75165254]
[1770004881792,14.0193,2234.1,2232.0,12.75165254]
[1770004881967,1.40325,2234.2,2232.2,12.75165254]
[1770004882169,0.0011,2234.2,2232.2,12.75165254]
[1770004882371,0.0011,2234.2,2232.4,12.75165254]
[1770004882598,14.0193,2235.4,2233.0,12.75165254]
[1770004882901,14.0193,2235.4,2233.2,12.75165254]
[1770004883287,12.42554018,2235.7,2233.2,12.75165254]
[1770004883966,13.54380437,2235.7,2233.2,12.75165254]
[1770004884167,0.1024,2235.6,2233.2,12.75165254]
[1770004884404,0.2343041,2236.2,2233.2,12.75165254]
[1770004884606,0.2343041,2236.2,2233.6,12.75165254]
[1770004884808,14.0193,2236.4,2234.3,12.75165254]
[1770004884994,0.37824136,2237.4,2234.7,12.75165254]
[1770004884995,0.7025315,2237.2,2234.7,12.75165254]
[1770004885216,0.2341557,2236.8,2234.8,12.85405254]
[1770004885522,0.70205574,2238.3,2236.1,12.75165254]
[1770004885729,0.23400401,2238.6,2236.3,12.75165254]
[1770004885890,0.1024,2238.9,2236.4,0.94]
[1770004886090,12.80435512,2238.9,2236.4,0.94]
[1770004886292,0.1024,2238.6,2236.3,12.75165254]
[1770004886488,0.1024,2238.3,2235.9,0.94]
[1770004886721,1.29067551,2238.3,2235.9,2.30916525]
[1770004886894,13.03792542,2238.2,2235.9,0.94]
[1770004887095,1.29067551,2238.3,2235.9,13.69165254]
[1770004887301,0.1024,2238.2,2235.9,13.69165254]
[1770004887908,0.1024,2238.0,2235.9,13.69165254]
[1770004888637,15.21196064,2238.3,2235.9,13.69165254]
[1770004888847,13.14032542,2238.1,2235.9,0.94]
[1770004889346,13.14032542,2238.1,2235.3,12.75165254]
[1770004889509,13.63372913,2238.1,2234.7,12.75165254]
[1770004889704,13.14032542,2237.9,2234.8,1.27516525]
[1770004889906,13.14032542,2237.5,2234.6,0.939]
[1770004890209,0.3359703,2236.7,2234.4,0.939]
[1770004890734,0.3359703,2236.5,2234.4,0.939]
[1770004890902,13.14032542,2236.5,2234.1,2.09187258]
[1770004891107,13.63372913,2236.5,2234.1,3.03087258]
[1770004891432,0.3359703,2236.3,2234.1,0.939]
[1770004891730,0.82937401,2236.3,2234.1,0.939]
[1770004892030,1.45390021,2236.3,2234.1,0.939]
[1770004892231,14.25825533,2236.3,2233.8,12.75165254]
[1770004892410,13.14032542,2236.1,2233.2,12.75165254]
[1770004892610,13.14032542,2236.1,2232.3,2.23528263]
[1770004892611,0.3359703,2235.9,2233.4,12.75165254]
[1770004892824,13.14032542,2235.9,2233.4,12.75165254]
[1770004893334,13.14032542,2235.9,2233.3,2.21416525]
[1770004893335,13.14032542,2235.9,2233.3,1.27516525]
[1770004893517,0.3359703,2235.3,2232.6,13.69065254]
[1770004893712,13.14032542,2235.3,2232.6,13.69065254]
[1770004893911,0.2335703,2234.8,2232.7,1.36906525]
[1770004894125,0.1024,2234.7,2232.7,1.36906525]
[1770004894333,0.2335703,2234.6,2232.6,13.69065254]
[1770004894611,0.2335703,2234.4,2232.6,13.69065254]
[1770004894818,0.1024,2234.7,2232.6,0.939]
[1770004894819,0.2335703,2234.6,2232.6,0.939]
[1770004895024,0.2335703,2234.0,2232.3,3.17428263]
[1770004895318,0.2335703,2234.0,2232.3,0.939]
[1770004895715,0.1024,2234.1,2232.3,0.939]
[1770004895915,0.2335703,2234.0,2232.3,0.939]
[1770004896127,0.1024,2234.3,2232.3,0.939]
[1770004896853,0.2335703,2233.8,2232.0,0.001]
[1770004897007,0.1024,2233.3,2232.0,0.001]
[1770004897206,0.2335703,2233.2,2232.0,0.001]
[1770004897429,0.2335703,2233.2,2231.8,0.001]
[1770004897430,12.80336512,2233.6,2231.8,0.001]
[1770004897741,0.2335703,2232.8,2230.7,13.30273182]
[1770004897941,0.2335703,2232.6,2230.6,1.93960607]
[1770004898111,0.2335703,2232.4,2230.6,1.93960607]
[1770004898945,0.2335703,2232.4,2230.6,0.1226856]
[1770004899107,26.82167512,2232.9,2230.6,0.1226856]
[1770004899312,0.2335703,2232.7,2230.6,0.1226856]
[1770004899845,0.1024,2232.2,2230.6,0.1226856]
[1770004900241,0.2335703,2232.1,2230.6,0.1226856]
[1770004900555,0.1024,2232.3,2230.6,0.1226856]
[1770004901528,1.64991076,2232.3,2230.6,0.1226856]
[1770004901923,1.54751076,2232.3,2230.6,13.42541742]
[1770004902553,0.1024,2233.0,2230.6,13.42541742]
[1770004902852,0.1024,2232.8,2230.6,13.42541742]
[1770004903563,15.13867404,2233.4,2230.6,13.42541742]
[1770004903725,0.1024,2233.3,2230.6,13.42541742]
[1770004904151,1.22185596,2233.3,2230.6,13.42541742]
[1770004904347,12.90378512,2233.1,2230.6,13.42541742]
[1770004904544,0.56994822,2233.2,2230.6,13.42541742]
[1770004904742,0.1024,2233.1,2230.6,13.42541742]
[1770004904943,0.1024,2232.9,2230.6,13.42541742]
[1770004905824,0.1024,2232.9,2230.6,0.1226856]
[1770004905825,0.2335703,2232.2,2230.6,0.1226856]
[1770004906024,0.1024,2231.9,2230.6,0.1226856]
[1770004906224,4.47962057,2232.4,2230.6,0.1226856]
[1770004906225,18.49801802,2232.8,2230.6,0.1226856]
[1770004906434,1.28013851,2232.4,2230.6,13.42541742]
[1770004906650,0.1024,2232.7,2230.6,13.42541742]
[1770004906855,0.2335703,2232.6,2230.6,13.42541742]
[1770004907044,0.2335703,2232.7,2230.6,13.42541742]
[1770004907249,0.1024,2232.6,2230.6,13.42541742]
[1770004907558,1.35318504,2233.0,2230.8,13.75692765]
[1770004907559,0.1024,2233.0,2230.8,13.75692765]
[1770004907733,12.90378512,2233.0,2230.8,13.75692765]
[1770004908058,0.3359703,2232.6,2230.8,13.75692765]
[1770004908245,0.1024,2232.8,2230.8,13.75692765]
[1770004908448,14.58924822,2233.2,2230.8,13.75692765]
[1770004908449,0.56994822,2233.2,2230.8,13.75692765]
[1770004908757,0.56994822,2233.2,2230.6,0.2250856]
[1770004908758,0.56994822,2233.2,2231.0,13.75692765]
[1770004909158,0.2335703,2233.1,2231.0,13.75692765]
[1770004909334,1.35300184,2233.3,2231.0,13.75692765]
[1770004909538,0.1024,2232.6,2230.6,0.1226856]
[1770004909724,0.1024,2232.6,2231.0,0.001]
[1770004910230,16.54053448,2233.6,2231.0,13.75792765]
[1770004910530,1.65405345,2233.5,2231.2,13.75692765]
[1770004910732,0.3359703,2233.4,2231.2,13.75692765]
[1770004911557,0.1024,2233.4,2231.2,13.75692765]
[1770004912345,1.22179688,2233.4,2231.2,13.75692765]
[1770004912546,0.2335703,2233.3,2231.2,13.75692765]
[1770004912859,0.1024,2233.4,2231.0,0.001]
[1770004912860,0.1024,2233.4,2231.3,15.27019969]
[1770004913062,14.0193,2234.0,2231.3,15.27019969]
[1770004913063,14.0193,2234.0,2231.5,13.75692765]
[1770004913229,1.11899683,2234.2,2231.7,13.75692765]
[1770004913432,0.0011,2234.3,2231.7,13.75692765]
[1770004913433,0.1035,2234.1,2231.7,13.75692765]
[1770004914056,1.22252856,2234.1,2231.7,13.75692765]
[1770004914256,0.1035,2234.1,2231.9,13.75692765]
[1770004914629,0.0011,2234.1,2231.9,13.75692765]
[1770004915161,0.2346703,2234.1,2231.9,13.75692765]
[1770004915374,0.3359703,2233.8,2231.2,0.94]
[1770004915536,0.0011,2234.1,2231.3,13.75692765]
[1770004915741,0.0011,2234.1,2231.5,13.75692765]
[1770004916984,0.2346703,2234.1,2231.5,13.75692765]
[1770004917275,13.03605542,2234.1,2231.5,13.75692765]
[1770004917475,0.1024,2233.6,2231.5,13.75692765]
[1770004917841,0.2335703,2233.3,2231.4,14.69692765]
[1770004918076,0.1024,2233.2,2231.4,16.16662042]
[1770004918239,0.2335703,2233.3,2231.4,16.16662042]
[1770004918240,1.11934643,2233.5,2231.4,16.16662042]
[1770004918440,0.3359703,2233.4,2231.4,14.69692765]
[1770004918870,13.13735542,2233.4,2231.4,0.94]
[1770004919072,0.1024,2233.1,2231.4,0.94]
[1770004919277,0.2335703,2233.0,2231.4,0.94]
[1770004919466,0.2335703,2233.0,2231.0,0.001]
[1770004919467,13.03495542,2232.6,2231.0,0.001]
[1770004919776,0.1024,2232.3,2231.0,0.001]
[1770004920143,0.2335703,2232.0,2231.0,0.001]
[1770004920540,0.2335703,2232.3,2231.0,0.001]
[1770004920947,0.3359703,2232.1,2231.0,0.001]
[1770004921189,0.3359703,2232.1,2229.6,13.75692765]
[1770004921346,0.3359703,2232.1,2228.6,3.98559548]
[1770004921347,0.2335703,2231.3,2229.1,13.75692765]
[1770004921695,0.1024,2231.6,2229.6,13.75692765]
[1770004921975,0.2335703,2231.6,2229.6,13.75692765]
[1770004922141,0.1024,2231.3,2229.6,13.75692765]
[1770004922755,0.2335703,2231.0,2229.0,13.75692765]
[1770004923158,1.06000508,2230.9,2229.0,13.75692765]
[1770004923396,14.0193,2231.1,2229.0,13.75692765]
[1770004923397,0.1024,2231.0,2229.0,13.75692765]
[1770004923557,1.5318053,2231.0,2230.9,0.001]
[1770004923887,1.5318053,2231.0,2229.5,13.75692765]
[1770004924186,1.5318053,2231.0,2230.0,0.001]
[1770004924353,0.3359703,2230.9,2229.0,13.75692765]
[1770004924558,12.90180512,2230.5,2227.9,13.75692765]
[1770004924755,0.3359703,2230.3,2228.0,1.61246824]
[1770004924989,0.2335703,2229.8,2227.9,13.75692765]
[1770004925300,0.2335703,2229.4,2227.5,0.94]
[1770004925451,0.1024,2229.3,2227.5,0.94]
[1770004925655,0.2335703,2229.8,2227.5,14.69692765]
[1770004925888,0.1024,2229.7,2227.7,13.75692765]
[1770004926095,0.1024,2229.7,2227.6,1.46969277]
[1770004926096,0.2335703,2229.7,2227.6,1.46969277]
[1770004926392,0.2335703,2229.7,2227.1,16.12468235]
[1770004926393,0.2335703,2229.3,2227.1,13.75692765]
[1770004926899,0.1024,2229.4,2227.1,13.75692765]
[1770004927079,14.0193,2229.6,2227.1,13.75692765]
[1770004927283,0.2335703,2229.4,2227.3,13.75692765]
[1770004927888,0.1024,2229.5,2227.3,13.75692765]
[1770004928090,14.0193,2230.1,2227.3,13.75692765]
[1770004928259,0.1024,2230.3,2227.3,13.75692765]
[1770004928452,0.1024,2230.3,2227.4,0.1024]
[1770004928773,0.35607942,2230.3,2227.5,13.81631663]
[1770004929202,13.03297542,2230.0,2227.5,13.81631663]
[1770004929486,0.2335703,2229.1,2227.5,13.81631663]
[1770004930184,0.1024,2229.0,2227.5,13.81631663]
[1770004930402,0.1024,2229.6,2227.5,13.81631663]
[1770004930586,0.1024,2229.6,2226.7,0.941]
[1770004930587,1.51457,2229.6,2227.6,15.19794829]
[1770004931173,1.41217,2229.6,2227.6,15.19794829]
[1770004931372,14.0193,2230.0,2227.6,15.19794829]
[1770004931573,14.0193,2230.0,2228.0,13.81631663]
[1770004931798,14.0193,2230.0,2228.0,14.75731663]
[1770004932187,0.25367942,2230.3,2228.0,14.75731663]
[1770004932391,1.37462791,2230.3,2228.0,14.75731663]
[1770004932593,0.1024,2230.1,2228.0,14.75731663]
[1770004932805,0.2335703,2230.0,2228.0,14.75731663]
[1770004933111,0.2335703,2229.4,2227.4,13.81631663]
[1770004933405,0.1024,2228.7,2227.4,13.81631663]
[1770004933976,12.79940512,2230.0,2227.4,15.19794829]
[1770004934209,1.4570968,2229.9,2227.4,15.19794829]
[1770004934717,0.3359703,2229.9,2227.4,15.19794829]
[1770004934879,0.1024,2229.9,2227.4,15.19794829]
[1770004935535,0.2335703,2229.6,2227.4,15.19794829]
[1770004935823,0.1024,2229.1,2227.4,13.81631663]
[1770004936114,3.0,2230.0,2227.1,13.81631663]
[1770004936410,3.0,2230.0,2228.1,13.81631663]
[1770004936596,0.0011,2229.8,2228.1,13.81631663]
[1770004937111,0.0011,2229.8,2227.5,13.81631663]
[1770004937112,0.2335703,2229.6,2227.5,13.81631663]
[1770004937406,0.2335703,2229.6,2227.3,13.81731663]
[1770004937407,14.0193,2229.5,2227.3,13.81731663]
[1770004937615,14.0193,2229.5,2227.4,1.38173166]
[1770004937616,0.2335703,2229.3,2227.4,1.38173166]
[1770004937840,0.2335703,2229.3,2227.3,13.81731663]
[1770004938124,0.1024,2229.2,2227.3,13.81731663]
[1770004938625,0.1024,2228.4,2227.3,0.001]
[1770004938920,4.708,2228.8,2227.0,0.001]
[1770004938921,0.1024,2228.7,2227.0,0.001]
[1770004939119,0.2335703,2228.6,2227.0,0.001]
[1770004940091,0.2335703,2228.4,2227.0,0.001]
[1770004940293,0.2335703,2228.2,2227.0,0.001]
[1770004940610,0.2335703,2228.0,2227.0,0.001]
[1770004940816,0.1024,2228.1,2227.0,0.001]
[1770004941016,1.76098051,2228.7,2227.0,13.81731663]
[1770004941205,2.68187051,2229.4,2227.2,13.81631663]
[1770004941405,14.0204,2229.8,2227.1,2.32373166]
[1770004941406,14.0204,2229.8,2227.4,13.81631663]
[1770004941609,0.1024,2229.7,2227.4,13.81631663]
[1770004942018,14.0204,2229.8,2227.6,13.81631663]
[1770004942327,14.0204,2229.8,2227.1,2.42613166]
[1770004942328,0.0011,2229.8,2227.8,13.81631663]
[1770004944699,0.1024,2229.7,2227.8,13.81631663]
[1770004944894,0.1024,2229.7,2228.0,13.81631663]
[1770004945130,0.0011,2229.8,2228.0,13.81631663]
[1770004946104,3.0011,2230.0,2228.1,13.81631663]
[1770004946303,3.0011,2230.0,2228.3,13.81631663]
[1770004946514,3.0011,2230.0,2228.5,13.81631663]
[1770004946711,3.32809166,2230.0,2228.7,13.81631663]
[1770004946931,14.0193,2231.4,2228.7,13.81631663]
[1770004947434,28.00048188,2231.8,2228.7,13.81631663]
[1770004947601,0.1024,2231.7,2228.7,13.81631663]
[1770004948233,0.1024,2231.7,2228.9,13.81631663]
[1770004948614,5.99108776,2231.2,2228.6,14.65354839]
[1770004948804,1.28308776,2231.2,2228.6,14.65354839]
[1770004949001,0.3359703,2231.2,2228.6,14.65354839]
[1770004949208,0.1024,2231.2,2228.8,13.81631663]
[1770004949408,0.1024,2231.2,2229.0,13.81631663]
[1770004950210,0.1024,2231.5,2229.0,13.81631663]
[1770004950415,0.0011,2230.7,2229.0,13.81631663]
[1770004951343,0.1024,2230.5,2228.4,13.81631663]
[1770004951638,0.0011,2230.7,2228.4,13.81631663]
[1770004951806,0.1024,2230.4,2228.4,13.81631663]
[1770004952004,0.2335703,2230.3,2228.6,13.81631663]
[1770004953140,14.17044352,2230.4,2228.0,13.81631663]
[1770004953329,0.1024,2229.7,2227.7,0.941]
[1770004953514,0.2335703,2229.4,2227.7,0.941]
[1770004953836,0.1024,2229.5,2227.7,0.941]
[1770004953837,0.2335703,2229.2,2227.7,0.941]
[1770004954139,0.3359703,2229.4,2227.7,0.941]
[1770004954326,0.2335703,2229.1,2227.7,0.941]
[1770004954531,0.3359703,2229.3,2227.7,0.941]
[1770004955028,14.0193,2229.6,2227.7,0.941]
[1770004955347,2.9136861,2229.5,2227.7,16.23314829]
[1770004955549,0.0011,2230.7,2228.6,13.81631663]
[1770004955844,15.05870653,2230.7,2228.6,1.6027708]
[1770004956146,15.05870653,2230.7,2227.6,13.81631663]
[1770004956147,0.2335703,2229.8,2227.6,13.81631663]
[1770004956651,0.1024,2229.8,2227.5,13.81731663]
[1770004956819,0.1024,2229.8,2227.6,16.96109617]
[1770004956820,1.8579664,2229.8,2227.6,16.96109617]
[1770004957208,0.2335703,2229.7,2227.6,16.96109617]
[1770004957416,0.2335703,2229.7,2227.6,15.35832537]
[1770004957643,0.2335703,2229.5,2227.5,0.001]
[1770004957956,0.1024,2229.0,2227.5,0.001]
[1770004958108,0.1024,2228.8,2227.5,0.001]
[1770004958310,0.2335703,2228.7,2227.5,0.001]
[1770004959244,0.1024,2228.8,2227.5,0.001]
[1770004959444,1.18068776,2229.3,2227.5,0.001]
[1770004959445,0.3359703,2229.3,2227.5,0.001]
[1770004959653,14.83637372,2229.3,2227.3,0.001]
[1770004959950,0.3359703,2228.9,2227.3,0.001]
[1770004960311,0.1024,2228.9,2227.3,0.001]
[1770004960642,0.3359703,2229.2,2227.3,13.74991638]
[1770004960846,1.71290656,2229.3,2227.3,13.74991638]
[1770004961149,0.3359703,2229.2,2227.4,1.37499164]
[1770004961315,0.3359703,2229.2,2227.4,15.12390802]
[1770004961517,0.2335703,2228.9,2227.3,0.001]
[1770004962746,14.0193,2229.7,2227.6,15.35168718]
[1770004962920,1.5219961,2229.8,2227.6,15.35168718]
[1770004962921,1.5219961,2229.8,2227.8,15.35168718]
[1770004963122,1.19842163,2230.6,2228.1,13.74891638]
[1770004963322,1.19842163,2230.6,2228.0,1.6027708]
[1770004963323,7.02720293,2230.6,2228.3,13.74891638]
[1770004963523,0.1024,2230.0,2227.7,13.74891638]
[1770004963757,0.0011,2229.8,2227.7,13.74891638]
[1770004964560,0.0011,2229.8,2227.7,15.35168718]
[1770004964851,0.0011,2229.8,2227.9,13.74891638]
[1770004965015,0.0011,2229.8,2228.1,13.74891638]
[1770004965417,0.0011,2229.8,2228.3,13.74891638]
[1770004970227,0.0011,2229.8,2228.3,15.35168718]
[1770004971346,0.0011,2229.8,2228.5,13.92663023]
[1770004971578,0.0011,2229.8,2228.7,13.92663023]
[1770004972080,0.0011,2230.0,2229.0,15.52940103]
[1770004972240,0.0011,2230.0,2229.0,13.92663023]
[1770004973776,0.2335703,2231.2,2229.0,13.92663023]
[1770004973777,1.19842163,2231.6,2229.8,13.92663023]
[1770004973959,0.0011,2231.8,2230.4,1.60115399]
[1770004974277,0.0011,2231.8,2230.6,13.92663023]
[1770004974476,0.0011,2231.8,2230.3,1.60115399]
[1770004974770,0.0011,2231.8,2230.2,15.52778422]
[1770004974936,0.0011,2231.8,2230.3,1.19947808]
[1770004975137,0.0011,2231.8,2230.4,15.46179895]
[1770004975851,0.0011,2231.8,2230.4,16.66127703]
[1770004976069,0.0011,2231.8,2230.6,15.12610831]
[1770004976399,0.0011,2233.2,2231.0,13.92663023]
[1770004976555,0.0011,2233.2,2231.3,15.12610831]
[1770004976759,0.0011,2233.2,2231.5,13.92663023]
[1770004976953,0.0011,2233.2,2231.5,14.86763023]
[1770004977154,1.19952163,2234.1,2232.1,13.92663023]
[1770004977155,0.0011,2234.1,2232.1,13.92663023]
[1770004978553,13.31257394,2233.9,2231.5,1.19947808]
[1770004978764,0.3359703,2233.7,2231.0,13.92663023]
[1770004978964,0.1024,2233.7,2231.1,1.19947808]
[1770004979164,0.0011,2234.1,2231.6,13.92663023]
[1770004979383,0.0011,2234.1,2231.8,13.92663023]
[1770004979881,0.0011,2234.1,2232.0,13.92663023]
[1770004980081,0.0011,2234.1,2232.1,1.39266302]
[1770004980283,0.0011,2234.1,2232.1,15.31929325]
[1770004980856,0.0011,2234.1,2232.3,13.92663023]
[1770004981059,0.0011,2234.3,2232.9,13.92663023]
[1770004981287,0.0011,2234.3,2233.0,0.941]
[1770004981453,0.0011,2234.3,2232.5,13.92663023]
[1770004981783,0.0011,2234.3,2232.5,14.92638523]
[1770004982156,0.1024,2234.1,2232.3,0.941]
[1770004982352,0.2335703,2233.8,2231.5,13.92663023]
[1770004982584,13.54614424,2233.6,2231.3,0.941]
[1770004982984,13.54614424,2233.6,2231.3,14.86763023]
[1770004983189,0.3359703,2233.4,2231.3,14.86763023]
[1770004983361,13.64854424,2233.4,2231.3,0.941]
[1770004983559,13.64854424,2233.4,2230.7,13.92663023]
[1770004983888,0.3359703,2233.4,2230.7,13.92663023]
[1770004984081,0.3359703,2233.4,2230.9,13.92663023]
[1770004984282,0.3359703,2233.4,2231.0,15.32953325]
[1770004985761,14.76792582,2233.4,2231.0,15.32953325]
[1770004986090,14.76792582,2233.4,2230.4,0.941]
[1770004986091,14.76792582,2233.4,2230.5,13.92663023]
[1770004986287,13.64854424,2233.2,2230.5,13.92663023]
[1770004986688,0.2335703,2232.8,2230.5,13.92663023]
[1770004986888,0.1024,2232.7,2230.5,13.92663023]
[1770004987090,0.2335703,2232.6,2230.5,13.92663023]
[1770004987295,0.1024,2232.3,2230.4,0.941]
[1770004987879,0.2335703,2232.2,2230.4,14.01523553]
[1770004988067,0.2335703,2232.8,2230.5,14.47575908]
[1770004988663,0.3359703,2233.0,2230.5,14.47575908]
[1770004989383,0.1024,2233.0,2230.7,13.07423553]
[1770004989694,0.1024,2233.0,2230.7,13.07523553]
[1770004990266,0.1024,2233.4,2230.7,13.07523553]
[1770004990494,0.1024,2233.4,2230.9,13.07423553]
[1770004990495,1.53075664,2233.4,2230.9,13.07423553]
[1770004990698,1.42835664,2233.4,2231.1,13.07423553]
[1770004990895,0.0011,2233.9,2231.7,13.07423553]
[1770004991099,0.0011,2233.9,2232.1,13.07423553]
[1770004991399,0.0011,2233.9,2232.4,13.07423553]
[1770004992875,0.2346703,2233.9,2231.8,14.01423553]
[1770004993101,0.0011,2233.9,2232.3,0.1024]
[1770004993306,0.0011,2234.3,2232.5,13.07423553]
[1770004993471,0.0011,2235.7,2234.6,13.07423553]
[1770004993673,0.70270525,2236.4,2235.6,0.23389192]
[1770004993902,12.81631197,2237.5,2235.6,0.23389192]
[1770004994070,12.81631197,2237.5,2234.8,13.07423553]
[1770004994071,0.48268531,2236.7,2234.7,0.94]
[1770004994271,1.54417823,2236.6,2234.7,0.94]
[1770004994613,1.54417823,2236.6,2233.6,15.69947808]
[1770004994614,12.91871197,2236.4,2233.6,13.07423553]
[1770004994830,0.1024,2236.3,2233.6,13.07423553]
[1770004994969,12.81631197,2236.4,2233.6,13.07423553]
[1770004995168,13.93420004,2236.4,2233.6,13.07423553]
[1770004995416,1.44177823,2236.6,2233.7,14.47575908]
[1770004995417,0.1024,2236.1,2233.7,14.47575908]
[1770004996103,1.44177823,2236.6,2233.9,13.07423553]
[1770004996402,1.44177823,2236.6,2234.2,13.07423553]
[1770004996568,0.0011,2236.8,2235.0,13.07423553]
[1770004996771,12.81631197,2238.6,2235.6,13.07423553]
[1770004996976,13.9331044,2238.6,2235.8,13.07423553]
[1770004997174,13.9331044,2238.6,2235.2,13.07423553]
[1770004997175,0.1024,2237.7,2235.2,13.07423553]